fUSD/lending_fUSD_20250606
["ID","MTS","AMOUNT","RATE_DAILY","PERIOD"]
[364759549,1749229918357,-777.0,0.00029698,5]
[364759550,1749229918367,-421.89289531,0.00029698,5]
[364759551,1749229918376,-1293.92,0.00029698,5]
[364759552,1749229918386,-952.4,0.00029698,5]
[364759553,1749229918395,-692.87,0.00029698,5]
[364759554,1749229918404,-1552.44,0.00029698,5]
[364759556,1749229918414,-878.5,0.00029698,5]
[364759557,1749229918423,-824.69,0.00029698,5]
[364759558,1749229918432,-1820.97,0.00029698,5]
[364759559,1749229918441,-1445.92,0.00029698,5]
[364759560,1749229918450,-480.0,0.00029698,5]
[364759561,1749229918460,-686.33,0.00029698,5]
[364759562,1749229918470,-1256.45,0.00029698,5]
[364759563,1749229918480,-1113.88,0.00029698,5]
[364759564,1749229918489,-480.0,0.00029698,5]
[364759565,1749229918498,-480.0,0.00029698,5]
[364759566,1749229918508,-876.31,0.00029698,5]
[364759567,1749229918517,-872.88,0.00029698,5]
[364759568,1749229918526,-565.93,0.00029698,5]
[364759569,1749229918535,-757.79,0.00029698,5]
[364759570,1749229918544,-767.93,0.00029698,5]
[364759571,1749229918554,-1120.8,0.00029698,5]
[364759572,1749229918563,-480.0,0.00029698,5]
[364759573,1749229918573,-695.31,0.00029698,5]
[364759574,1749229918582,-673.95,0.00029698,5]
[364759575,1749229918591,-532.47024294,0.00029698,5]
[364759576,1749229918600,-931.01,0.00029698,5]
[364759577,1749229918610,-480.0,0.00029698,5]
[364759578,1749229918619,-480.0,0.00029698,5]
[364759579,1749229918630,-609.77,0.00029698,5]
[364759580,1749229918639,-480.0,0.00029698,5]
[364759581,1749229918648,-480.0,0.00029698,5]
[364759582,1749229918657,-1281.91,0.00029698,5]
[364759583,1749229918667,-816.61,0.00029698,5]
[364759584,1749229918677,-480.0,0.00029698,5]
[364759585,1749229918686,-764.02,0.00029698,5]
[364759586,1749229918695,-1371.81,0.00029698,5]
[364759587,1749229918707,-1580.65,0.00029698,5]
[364759588,1749229918717,-480.0,0.00029698,5]
[364759589,1749229918726,-583.36,0.00029698,5]
[364759590,1749229918735,-533.29,0.00029698,5]
[364759591,1749229918744,-979.62,0.00029698,5]
[364759593,1749229918754,-480.0,0.00029698,5]
[364759594,1749229918763,-680.63,0.00029698,5]
[364759595,1749229918772,-610.2,0.00029698,5]
[364759596,1749229918781,-480.0,0.00029698,5]
[364759597,1749229918790,-767.55,0.00029698,5]
[364759598,1749229918799,-532.30035709,0.00029698,5]
[364759599,1749229918808,-1108.13,0.00029698,5]
[364759600,1749229918818,-1055.72,0.00029698,5]
[364759601,1749229918827,-1139.21,0.00029698,5]
[364759602,1749229918836,-480.0,0.00029698,5]
[364759603,1749229918845,-182.85435987,0.00029698,5]
[364759604,1749229918864,-1296.03564013,0.00029698,5]
[364759605,1749229918873,-546.41204894,0.00029698,5]
[364759606,1749229920029,-0.03594265,0.00027286,2]
[364759607,1749229920041,-334.37454839,0.00027286,2]
[364759608,1749229920050,-208.10606919,0.00027286,2]
[364759609,1749229920060,-347.29261355,0.00027286,2]
[364759610,1749229920500,-151.0,0.00020107,2]
[364759611,1749229920509,-152.70738645,0.00027286,2]
[364759612,1749229920520,-500.0,0.00027286,2]
[364759613,1749229920529,-500.0,0.00027286,2]
[364759614,1749229920539,-360.39261355,0.00027286,2]
[364759615,1749229920553,-45.19863241,0.00027286,2]
[364759616,1749229920562,-500.0,0.00027286,2]
[364759617,1749229920571,-228.12625637,0.00027286,2]
[364759618,1749229920581,-226.67511122,0.00027286,2]
[364759619,1749229920718,-300.0,0.00027285,2]
[364759620,1749229920728,-273.32488878,0.00027286,2]
[364759621,1749229920737,-500.0,0.00027286,2]
[364759622,1749229920747,-500.0,0.00027286,2]
[364759623,1749229920757,-500.0,0.00027286,2]
[364759624,1749229920766,-500.0,0.00027286,2]
[364759625,1749229920776,-500.0,0.00027286,2]
[364759626,1749229920785,-500.0,0.00027286,2]
[364759627,1749229920795,-500.0,0.00027286,2]
[364759628,1749229920805,-372.86009925,0.00027286,2]
[364759629,1749229920814,-500.0,0.00027286,2]
[364759630,1749229920824,-500.0,0.00027286,2]
[364759631,1749229920834,-500.0,0.00027286,2]
[364759632,1749229920843,-500.0,0.00027286,2]
[364759633,1749229920853,-500.0,0.00027286,2]
[364759634,1749229920862,-480.0,0.00027397,5]
[364759635,1749229920872,-500.0,0.00027397,2]
[364759636,1749229920882,-500.0,0.00027397,2]
[364759637,1749229920892,-299.99176529,0.00027397,2]
[364759638,1749229920902,-3.86479186,0.00027397,2]
[364759639,1749229921462,250.0,0.00019,2]
[364759646,1749230061463,155.04,0.00018905,20]
[364759649,1749230354719,349.57,0.00035616,120]
[364759650,1749230403880,1000.0,0.00035616,120]
[364759651,1749230418777,151.0,0.00035,120]
[364759652,1749230419088,161.0,0.00035,120]
[364759653,1749230419343,151.0,0.00035,120]
[364759654,1749230419626,253.2642748,0.00035,120]
[364759655,1749230420209,152.0,0.00035,120]
[364759656,1749230420306,151.0,0.00035,120]
[364759657,1749230420542,152.0,0.00035,120]
[364759658,1749230420887,151.0,0.00035,120]
[364759659,1749230421159,152.0,0.00035,120]
[364759660,1749230421449,151.0,0.00035,120]
[364759661,1749230421681,152.0,0.00035,120]
[364759662,1749230422012,200.7280971,0.00035,120]
[364759663,1749230422051,151.0,0.00035,120]
[364759664,1749230422232,152.0,0.00035,120]
[364759665,1749230422662,151.0,0.00035,120]
[364759666,1749230422771,152.0,0.00035,120]
[364759667,1749230423281,292.95177789,0.00035,120]
[364759668,1749230423313,152.0,0.00035,120]
[364759669,1749230423814,152.0,0.00035,120]
[364759674,1749230656513,157.46,0.00013699,2]
[364759678,1749230762492,200.0,0.00035616,120]
[364759680,1749230815499,1368.49899995,0.00015,14]
[364759681,1749230831396,846.92921219,0.00015,2]
[364759690,1749230836035,-1400.0,0.000199,2]
[364759699,1749230882510,-300.0,0.00019899,2]
[364759700,1749230882538,-810.0,0.000199,2]
[364759701,1749230886456,-5000.0,0.000199,2]
[364759702,1749230887355,-5000.0,0.000199,2]
[364759703,1749230913780,3329.42,0.00021,30]
[364759704,1749230914429,19509.649999,0.000151,2]
[364759707,1749230929545,-205.0,0.0001989,2]
[364759708,1749230979105,-400.0,0.000199,7]
[364759709,1749230979134,-1600.0,0.0002,7]
[364759710,1749230981218,-1234.14726081,0.0002,7]
[364759711,1749230981245,-510.98898428,0.0002,7]
[364759715,1749231020410,-255.0,0.00022718,30]
[364759717,1749231032237,-181.83514818,0.00019789,2]
[364759718,1749231032246,-336.49324358,0.0001987,2]
[364759719,1749231032319,-1640.76028038,0.0001987,2]
[364759720,1749231032328,-1200.0,0.00019889,2]
[364759721,1749231032337,-10361.06212689,0.0001989,2]
[364759722,1749231032353,-16303.87514877,0.0001989,2]
[364759723,1749231032362,-33213.25120123,0.000199,2]
[364759724,1749231032373,-787.72537109,0.000199,2]
[364759725,1749231032384,-1296.15910857,0.000199,2]
[364759726,1749231032407,-5176.41795881,0.000199,2]
[364759741,1749231037068,-585.0,0.000199,2]
[364759746,1749231038119,-1316.81269628,0.000199,2]
[364759747,1749231038228,-953.82884201,0.000199,2]
[364759923,1749231040216,-10084.22913075,0.000199,2]
[364759925,1749231040225,-504.41815317,0.00019973,2]
[364759927,1749231040234,-152.59,0.0001999,2]
[364759929,1749231040244,-500.0,0.00019999,2]
[364759931,1749231040254,-500.0,0.00019999,2]
[364759933,1749231040263,-500.0,0.00019999,2]
[364759935,1749231040272,-500.0,0.00019999,2]
[364759937,1749231040281,-500.0,0.00019999,2]
[364759939,1749231040290,-500.0,0.00019999,2]
[364759941,1749231040299,-500.0,0.00019999,2]
[364759943,1749231040308,-500.0,0.00019999,2]
[364759945,1749231040318,-500.0,0.00019999,2]
[364759947,1749231040327,-500.0,0.00019999,2]
[364759949,1749231040337,-500.0,0.00019999,2]
[364759951,1749231040346,-500.0,0.00019999,2]
[364759953,1749231040356,-312.27183285,0.00019999,2]
[364759955,1749231040365,-220.69100247,0.00019999,2]
[364759957,1749231040374,-500.0,0.00019999,2]
[364759959,1749231040385,-500.0,0.00019999,2]
[364759961,1749231040394,-576.75847618,0.00019999,2]
[364759963,1749231040404,-500.0,0.00019999,2]
[364759965,1749231040413,-500.0,0.00019999,2]
[364759967,1749231040422,-500.0,0.00019999,2]
[364759969,1749231040431,-500.0,0.00019999,2]
[364759971,1749231040440,-633.41662726,0.00019999,2]
[364759973,1749231040449,-905970.74833967,0.0002,2]
[364759974,1749231040459,-100716.52389899,0.0002,2]
[364759976,1749231040469,-1037.21790283,0.00020348,2]
[364759978,1749231040478,-2432.44168316,0.00020448,2]
[364759980,1749231040488,-157.46,0.00020548,2]
[364759982,1749231040497,-1037.21790281,0.00021321,2]
[364759983,1749231040507,-2432.44168308,0.00021446,2]
[364759986,1749231040517,-995.9,0.00021753,2]
[364759987,1749231040526,-166.85,0.00022152,2]
[364759989,1749231040535,-1037.21790281,0.00022294,2]
[364759991,1749231040545,-2432.44168308,0.00022445,2]
[364759993,1749231040554,-207.92,0.00022718,30]
[364759995,1749231040563,-191.52,0.00022738,2]
[364759997,1749231040573,-150.0,0.00022903,2]
[364759999,1749231040583,-1037.21790281,0.00023267,2]
[364760000,1749231040592,-2432.44168308,0.00023443,2]
[364760001,1749231040602,-152.59,0.00023579,2]
[364760002,1749231040611,-178.15,0.00023588,2]
[364760003,1749231040620,-178.15,0.00023588,2]
[364760004,1749231040629,-178.15,0.00023588,2]
[364760005,1749231040639,-178.15,0.00023588,2]
[364760006,1749231040648,-178.15,0.00023588,2]
[364760007,1749231040658,-178.15,0.00023588,2]
[364760008,1749231040668,-103963.651622,0.00023589,7]
[364760009,1749231040678,-170.2,0.00023655,2]
[364760011,1749231040687,-5000.00945453,0.00024,5]
[364760013,1749231040697,-995.9,0.00024017,2]
[364760015,1749231040706,-500.0,0.0002419,2]
[364760017,1749231040716,-1037.21790281,0.0002424,2]
[364760019,1749231040725,-2432.44168308,0.00024441,2]
[364760021,1749231040735,-1084.05220952,0.00024441,2]
[364760023,1749231040745,-99545.79893754,0.00024441,2]
[364760025,1749231040754,-171.71032806,0.00024738,2]
[364760027,1749231040764,-152.59,0.0002479,2]
[364760029,1749231040773,-152.59,0.0002479,2]
[364760031,1749231040783,-244.24615897,0.00024799,2]
[364760033,1749231040792,-332.43921761,0.00024799,2]
[364760036,1749231040802,-465.78058035,0.00024799,2]
[364760038,1749231040811,-201.83857451,0.00024799,2]
[364760040,1749231040820,-409471.432708,0.000248,2]
[364760042,1749231040830,-1124.66802735,0.000248,11]
[364760044,1749231040839,-1124.66802714,0.000248,11]
[364760046,1749231040849,-1124.66802714,0.000248,11]
[364760048,1749231040858,-1124.66802714,0.000248,11]
[364760050,1749231040867,-1124.66802714,0.000248,11]
[364760052,1749231040876,-1124.66802714,0.000248,11]
[364760054,1749231040886,-1124.66802714,0.000248,11]
[364760056,1749231040895,-152.59,0.0002489,2]
[364760058,1749231040905,-152.59,0.0002489,2]
[364760060,1749231040914,-311963.785969,0.000249,2]
[364760062,1749231040923,-1124.66802714,0.00025003,12]
[364760064,1749231040933,-1037.21790281,0.00025212,2]
[364760066,1749231040942,-200.0,0.000253,2]
[364760068,1749231040951,-4000.0,0.00025319,4]
[364760070,1749231040960,-2432.44168308,0.0002544,2]
[364760072,1749231040969,-1124.66802714,0.0002559,13]
[364760074,1749231040979,-12079.66,0.00025714,2]
[364760076,1749231040990,-23900.0,0.00025823,2]
[364760078,1749231041000,-166.85,0.00025844,2]
[364760080,1749231041009,-1048.26,0.00025897,2]
[364760082,1749231041018,-388.25,0.00025901,2]
[364760084,1749231041027,-329.0,0.00025912,2]
[364760085,1749231041037,-7296.06,0.00026029,2]
[364760087,1749231041046,-1000.0,0.00026093,2]
[364760089,1749231041055,-150.0,0.00026133,7]
[364760091,1749231041064,-150.99,0.00026133,2]
[364760094,1749231041074,-5545.65,0.00026133,2]
[364760096,1749231041083,-150.99,0.00026133,2]
[364760098,1749231041092,-2472.31,0.00026133,2]
[364760100,1749231041101,-271.12,0.00026133,2]
[364760102,1749231041111,-999.99,0.00026133,2]
[364760103,1749231041120,-4273.28,0.00026133,2]
[364760104,1749231041129,-191.52,0.00026148,2]
[364760105,1749231041138,-1124.66802714,0.00026176,14]
[364760106,1749231041148,-1037.21790281,0.00026185,2]
[364760107,1749231041158,-995.9,0.00026281,2]
[364760108,1749231041167,-305.94,0.00026314,2]
[364760109,1749231041177,-300.16,0.00026314,2]
[364760110,1749231041186,-301.11,0.00026314,2]
[364760111,1749231041196,-151.0,0.00026375,2]
[364760112,1749231041205,-6544.91833211,0.00026389,2]
[364760113,1749231041214,-36950.58,0.0002639,2]
[364760114,1749231041223,-2432.44168308,0.00026438,2]
[364760115,1749231041233,-1709.18,0.00026511,2]
[364760116,1749231041242,-181.69,0.00026626,2]
[364760117,1749231041251,-1124.66802714,0.00026762,15]
[364760118,1749231041260,-250.0,0.00026791,2]
[364760119,1749231041269,-1000.0,0.00026791,2]
[364760120,1749231041279,-800.0,0.000269,9]
[364760121,1749231041288,-1076.26864143,0.00027,2]
[364760122,1749231041297,-157.85163,0.00027,2]
[364760123,1749231041306,-1037.21790281,0.00027158,2]
[364760124,1749231041316,-287.6013756,0.00027165,2]
[364760125,1749231041325,-150.0,0.00027264,2]
[364760126,1749231041334,-8494.36718113,0.0002729,2]
[364760127,1749231041343,-899.8243845,0.00027297,2]
[364760128,1749231041353,-150.0,0.00027348,16]
[364760129,1749231041362,-1124.66802714,0.00027348,16]
[364760130,1749231041371,-500.0,0.00027373,2]
[364760131,1749231041380,-409.80880066,0.00027373,2]
[364760132,1749231041390,-501.2147058,0.00027373,2]
[364760133,1749231041399,-500.69387656,0.00027373,2]
[364760134,1749231041408,-508.02161837,0.00027373,2]
[364760135,1749231041418,-152.59,0.00027387,2]
[364760136,1749231041427,-152.59,0.00027387,2]
[364760137,1749231041436,-435.02125896,0.00027397,5]
[364760138,1749231041445,-480.0,0.00027397,5]
[364760139,1749231041454,-646.85,0.00027397,5]
[364760140,1749231041463,-539.13,0.00027397,5]
[364760141,1749231041473,-682.86,0.00027397,5]
[364760142,1749231041482,-480.0,0.00027397,5]
[364760143,1749231041491,-480.0,0.00027397,5]
[364760144,1749231041500,-542.22,0.00027397,5]
[364760145,1749231041509,-480.0,0.00027397,5]
[364760146,1749231041519,-480.0,0.00027397,5]
[364760147,1749231041528,-480.0,0.00027397,5]
[364760148,1749231041537,-480.0,0.00027397,5]
[364760149,1749231041546,-480.0,0.00027397,5]
[364760150,1749231041555,-472.13555142,0.00027397,5]
[364760151,1749231041565,-480.0,0.00027397,5]
[364760152,1749231041574,-454.9211908,0.00027397,5]
[364760153,1749231041583,-460.0,0.00027397,5]
[364760154,1749231041592,-480.0,0.00027397,5]
[364760155,1749231041602,-480.0,0.00027397,5]
[364760156,1749231041611,-480.0,0.00027397,5]
[364760157,1749231041620,-480.0,0.00027397,5]
[364760158,1749231041629,-480.0,0.00027397,5]
[364760159,1749231041639,-480.0,0.00027397,5]
[364760160,1749231041648,-480.0,0.00027397,5]
[364760161,1749231041658,-480.0,0.00027397,5]
[364760162,1749231041667,-480.0,0.00027397,5]
[364760163,1749231041676,-480.0,0.00027397,5]
[364760164,1749231041685,-480.0,0.00027397,5]
[364760165,1749231041694,-480.0,0.00027397,5]
[364760166,1749231041704,-480.0,0.00027397,5]
[364760167,1749231041713,-480.0,0.00027397,5]
[364760168,1749231041723,-480.0,0.00027397,5]
[364760169,1749231041732,-480.0,0.00027397,5]
[364760170,1749231041742,-480.0,0.00027397,5]
[364760171,1749231041751,-480.0,0.00027397,5]
[364760172,1749231041759,-249.69700801,0.00027397,5]
[364760173,1749231041769,-480.72,0.00027397,5]
[364760174,1749231041778,-480.0,0.00027397,5]
[364760175,1749231041787,-480.0,0.00027397,5]
[364760176,1749231041797,-592.74,0.00027397,5]
[364760177,1749231041806,-480.0,0.00027397,5]
[364760178,1749231041815,-480.0,0.00027397,5]
[364760179,1749231041825,-480.0,0.00027397,5]
[364760180,1749231041834,-1160.33,0.00027397,5]
[364760181,1749231041843,-663.63,0.00027397,5]
[364760182,1749231041852,-480.0,0.00027397,5]
[364760183,1749231041861,-504.76,0.00027397,5]
[364760184,1749231041870,-480.0,0.00027397,5]
[364760185,1749231041879,-480.0,0.00027397,5]
[364760186,1749231041888,-480.0,0.00027397,5]
[364760187,1749231041898,-480.0,0.00027397,5]
[364760188,1749231041907,-480.0,0.00027397,5]
[364760189,1749231041917,-480.0,0.00027397,5]
[364760190,1749231041926,-480.0,0.00027397,5]
[364760191,1749231041935,-480.0,0.00027397,5]
[364760192,1749231041944,-480.0,0.00027397,5]
[364760193,1749231041953,-480.0,0.00027397,5]
[364760194,1749231041962,-480.0,0.00027397,5]
[364760195,1749231041971,-480.0,0.00027397,5]
[364760196,1749231041980,-480.0,0.00027397,5]
[364760197,1749231041994,-480.0,0.00027397,5]
[364760198,1749231042003,-480.0,0.00027397,5]
[364760199,1749231042012,-931.36,0.00027397,5]
[364760200,1749231042021,-503.15,0.00027397,5]
[364760201,1749231042031,-480.0,0.00027397,5]
[364760202,1749231042040,-1397.249091,0.00027397,5]
[364760203,1749231042049,-480.0,0.00027397,5]
[364760204,1749231042058,-480.0,0.00027397,5]
[364760205,1749231042068,-480.0,0.00027397,5]
[364760206,1749231042077,-480.0,0.00027397,5]
[364760207,1749231042086,-514.43,0.00027397,5]
[364760208,1749231042095,-480.0,0.00027397,5]
[364760209,1749231042105,-1342.600141,0.00027397,5]
[364760210,1749231042114,-494.02,0.00027397,5]
[364760211,1749231042123,-480.0,0.00027397,5]
[364760212,1749231042132,-480.0,0.00027397,5]
[364760213,1749231042142,-480.0,0.00027397,5]
[364760214,1749231042151,-480.0,0.00027397,5]
[364760215,1749231042160,-866.85,0.00027397,5]
[364760216,1749231042169,-480.0,0.00027397,5]
[364760217,1749231042178,-480.0,0.00027397,5]
[364760218,1749231042188,-480.0,0.00027397,5]
[364760219,1749231042198,-480.0,0.00027397,5]
[364760220,1749231042207,-480.0,0.00027397,5]
[364760221,1749231042217,-487.68472245,0.00027397,5]
[364760222,1749231042226,-480.0,0.00027397,5]
[364760223,1749231042236,-163.67194531,0.00027397,5]
[364760224,1749231042245,-788.52,0.00027397,5]
[364760225,1749231042254,-480.0,0.00027397,5]
[364760226,1749231042265,-530.83,0.00027397,5]
[364760227,1749231042274,-1095.49,0.00027397,5]
[364760228,1749231042284,-480.0,0.00027397,5]
[364760229,1749231042293,-1000.0,0.00027397,5]
[364760230,1749231042303,-569.26,0.00027397,5]
[364760231,1749231042312,-1106.73,0.00027397,5]
[364760232,1749231042321,-491.18,0.00027397,5]
[364760233,1749231042386,-480.0,0.00027397,5]
[364760234,1749231042396,-480.0,0.00027397,5]
[364760235,1749231042405,-480.0,0.00027397,5]
[364760236,1749231042415,-480.0,0.00027397,5]
[364760237,1749231042424,-1049.81,0.00027397,5]
[364760238,1749231042433,-492.8597847,0.00027397,5]
[364760239,1749231042442,-480.0,0.00027397,5]
[364760240,1749231042451,-480.0,0.00027397,5]
[364760241,1749231042460,-480.0,0.00027397,5]
[364760242,1749231042470,-707.37,0.00027397,5]
[364760243,1749231042479,-480.0,0.00027397,5]
[364760244,1749231042488,-480.0,0.00027397,5]
[364760245,1749231042497,-480.0,0.00027397,5]
[364760246,1749231042506,-480.0,0.00027397,5]
[364760247,1749231042515,-480.0,0.00027397,5]
[364760248,1749231042524,-480.0,0.00027397,5]
[364760249,1749231042533,-649.66,0.00027397,5]
[364760250,1749231042542,-480.0,0.00027397,5]
[364760251,1749231042551,-480.0,0.00027397,5]
[364760252,1749231042560,-465.749696,0.00027397,5]
[364760253,1749231042570,-480.0,0.00027397,5]
[364760254,1749231042578,-480.0,0.00027397,5]
[364760255,1749231042587,-480.0,0.00027397,5]
[364760256,1749231042597,-525.53,0.00027397,5]
[364760257,1749231042607,-480.0,0.00027397,5]
[364760258,1749231042617,-480.0,0.00027397,5]
[364760259,1749231042627,-426.0577345,0.00027397,5]
[364760260,1749231042636,-1275.761779,0.00027397,5]
[364760261,1749231042645,-764.9,0.00027397,5]
[364760262,1749231042655,-480.0,0.00027397,5]
[364760263,1749231042665,-480.0,0.00027397,5]
[364760264,1749231042674,-480.0,0.00027397,5]
[364760265,1749231042683,-1000.0,0.00027397,2]
[364760266,1749231042693,-162.836284,0.00027397,5]
[364760267,1749231042702,-480.0,0.00027397,5]
[364760268,1749231042712,-480.0,0.00027397,5]
[364760269,1749231042721,-480.0,0.00027397,5]
[364760270,1749231042730,-480.0,0.00027397,5]
[364760271,1749231042739,-748.64,0.00027397,5]
[364760272,1749231042748,-500.0,0.00027397,2]
[364760273,1749231042758,-500.0,0.00027397,2]
[364760274,1749231042767,-500.0,0.00027397,2]
[364760275,1749231042776,-500.0,0.00027397,2]
[364760276,1749231042786,-500.0,0.00027397,2]
[364760277,1749231042795,-500.0,0.00027397,2]
[364760278,1749231042804,-500.0,0.00027397,2]
[364760279,1749231042814,-500.0,0.00027397,2]
[364760280,1749231042823,-500.0,0.00027397,2]
[364760281,1749231042832,-500.0,0.00027397,2]
[364760282,1749231042841,-500.0,0.00027397,2]
[364760283,1749231042850,-500.0,0.00027397,2]
[364760284,1749231042859,-500.0,0.00027397,2]
[364760285,1749231042868,-500.0,0.00027397,2]
[364760286,1749231042877,-500.0,0.00027397,2]
[364760287,1749231042887,-500.0,0.00027397,2]
[364760288,1749231042895,-500.0,0.00027397,2]
[364760289,1749231042904,-500.0,0.00027397,2]
[364760290,1749231042913,-500.0,0.00027397,2]
[364760291,1749231042922,-500.0,0.00027397,2]
[364760292,1749231042931,-500.0,0.00027397,2]
[364760293,1749231042941,-500.0,0.00027397,2]
[364760294,1749231042949,-500.0,0.00027397,2]
[364760295,1749231042958,-500.0,0.00027397,2]
[364760296,1749231042968,-657.04,0.00027397,5]
[364760297,1749231042977,-500.0,0.00027397,2]
[364760298,1749231042989,-500.0,0.00027397,2]
[364760299,1749231042999,-500.0,0.00027397,2]
[364760300,1749231043009,-500.0,0.00027397,2]
[364760301,1749231043019,-433.02106659,0.00027397,2]
[364760302,1749231043031,-500.0,0.00027397,2]
[364760303,1749231043040,-500.0,0.00027397,2]
[364760304,1749231043049,-500.0,0.00027397,2]
[364760305,1749231043059,-500.0,0.00027397,2]
[364760306,1749231043068,-500.0,0.00027397,2]
[364760307,1749231043077,-480.0,0.00027397,5]
[364760308,1749231043087,-480.0,0.00027397,5]
[364760309,1749231043096,-2610.25,0.00027397,5]
[364760310,1749231043106,-480.0,0.00027397,5]
[364760311,1749231043115,-1845.273202,0.00027397,5]
[364760312,1749231043124,-480.0,0.00027397,5]
[364760313,1749231043134,-404.98680034,0.00027397,5]
[364760314,1749231043145,-493.82174448,0.00027397,5]
[364760315,1749231043156,-851.92,0.00027397,5]
[364760316,1749231043166,-1068.38,0.00027397,5]
[364760317,1749231043175,-1334.73,0.00027397,5]
[364760318,1749231043184,-480.0,0.00027397,5]
[364760319,1749231043194,-1398.29,0.00027397,5]
[364760321,1749231043203,-500.0,0.00027397,2]
[364760322,1749231043213,-300.0,0.00027397,2]
[364760323,1749231043224,-500.0,0.00027397,2]
[364760324,1749231043234,-500.0,0.00027397,2]
[364760325,1749231043243,-480.0,0.00027397,5]
[364760326,1749231043253,-1005.22,0.00027397,5]
[364760327,1749231043263,-480.0,0.00027397,5]
[364760328,1749231043273,-941.02,0.00027397,5]
[364760329,1749231043282,-2579.77,0.00027397,5]
[364760330,1749231043291,-2204.910001,0.00027397,5]
[364760331,1749231043300,-574.46,0.00027397,5]
[364760332,1749231043310,-1077.65,0.00027397,5]
[364760333,1749231043318,-480.0,0.00027397,5]
[364760334,1749231043327,-668.4,0.00027397,5]
[364760335,1749231043336,-1694.79,0.00027397,5]
[364760336,1749231043345,-1342.04,0.00027397,5]
[364760337,1749231043353,-1034.25,0.00027397,5]
[364760338,1749231043362,-1159.43,0.00027397,5]
[364760339,1749231043371,-755.94,0.00027397,5]
[364760340,1749231043380,-480.0,0.00027397,5]
[364760341,1749231043391,-3983.39,0.00027397,5]
[364760342,1749231043400,-950.45,0.00027397,5]
[364760343,1749231043409,-299.15881782,0.00027397,5]
[364760344,1749231043419,-1295.87,0.00027397,5]
[364760345,1749231043428,-480.0,0.00027397,5]
[364760346,1749231043437,-1881.97,0.00027397,5]
[364760347,1749231043447,-480.0,0.00027397,5]
[364760348,1749231043455,-1300.46,0.00027397,5]
[364760349,1749231043465,-1550.21,0.00027397,5]
[364760350,1749231043474,-480.0,0.00027397,5]
[364760351,1749231043484,-1504.39,0.00027397,5]
[364760352,1749231043493,-500.0,0.00027397,5]
[364760353,1749231043503,-2368.76,0.00027397,5]
[364760354,1749231043512,-420.82368815,0.00027397,2]
[364760355,1749231043521,-480.0,0.00027397,5]
[364760356,1749231043529,-585.0452618,0.00027397,5]
[364760357,1749231043538,-579.07,0.00027397,5]
[364760358,1749231043548,-1306.7,0.00027397,5]
[364760359,1749231043557,-881.1,0.00027397,5]
[364760360,1749231043566,-480.0,0.00027397,5]
[364760361,1749231043575,-480.0,0.00027397,5]
[364760362,1749231043584,-742.7,0.00027397,5]
[364760363,1749231043593,-1403.003693,0.00027397,5]
[364760365,1749231043603,-1433.95,0.00027397,5]
[364760367,1749231043612,-480.0,0.00027397,5]
[364760369,1749231043623,-480.0,0.00027397,5]